bitfinex-derivatives/quotes_ETHF0:USTF0_20250106
["timestamp","ask_amount","ask_price","bid_price","bid_amount"]
[1736152984306,0.2748,3640.2,3640.0,3.48261]
[1736152984502,0.2748,3640.2,3640.0,3.2078]
[1736152984906,2.14437176,3640.1,3640.0,3.2078]
[1736152985203,2.14437176,3640.1,3640.0,3.48262]
[1736152985506,2.14437176,3640.1,3640.0,3.2078]
[1736152985703,5.35217176,3640.1,3639.8,1.8754]
[1736152985903,2.20201509,3640.0,3639.3,3.2078]
[1736152986103,0.27482,3639.9,3639.3,3.2078]
[1736152986309,0.27484,3639.8,3639.3,3.48267]
[1736152986498,1.188,3639.7,3639.3,3.2078]
[1736152986701,2.20201509,3639.4,3638.9,8.60204465]
[1736152986901,0.27489,3639.0,3638.9,8.60204465]
[1736152988811,0.41240173,3639.0,3638.3,3.2078]
[1736152989108,0.41240173,3639.0,3638.4,0.27494]
[1736152989109,1.191,3638.9,3638.4,0.27494]
[1736152989311,1.191,3638.9,3638.7,0.27491]
[1736152989509,0.41240173,3639.0,3638.8,0.2749]
[1736152989709,1.191,3638.9,3638.8,0.2749]
[1736152989910,1.191,3638.9,3638.4,0.27494]
[1736152990108,1.191,3638.9,3638.6,0.27492]
[1736152990303,1.191,3638.9,3638.3,3.2078]
[1736152990499,1.191,3638.9,3638.8,0.27491]
[1736152990698,1.191,3638.9,3638.6,0.27492]
[1736152991205,1.191,3638.9,3638.7,40.8]
[1736152991405,1.46591,3638.9,3638.7,40.8]
[1736152991608,0.27491,3638.8,3638.7,40.8]
[1736152991912,1.191,3638.9,3638.3,3.2078]
[1736152992209,1.46591,3638.8,3638.3,3.48274]
[1736152992401,1.191,3638.8,3638.3,3.2078]
[1736152992603,1.46591,3638.8,3638.3,3.48274]
[1736152992803,1.46591,3638.8,3638.3,3.2078]
[1736152992999,1.191,3638.8,3638.3,3.48274]
[1736152993204,1.46591,3638.8,3638.3,3.2078]
[1736152993504,1.46591,3638.8,3638.3,3.48274]
[1736152993910,1.191,3638.8,3638.3,3.48274]
[1736152994107,1.46591,3638.8,3638.3,3.48274]
[1736152994611,1.191,3638.8,3638.4,0.27494]
[1736152995108,1.191,3638.8,3638.3,3.2078]
[1736152995412,1.191,3638.8,3638.5,0.27492]
[1736152995712,1.191,3638.8,3638.7,0.27491]
[1736152996405,1.191,3638.8,3638.4,0.27493]
[1736152996604,1.191,3638.8,3638.5,0.27492]
[1736152996809,3.2078,3638.7,3637.9,3.2078]
[1736152997011,0.27494,3638.4,3637.9,3.48277]
[1736152997314,0.27495,3638.3,3637.9,3.2078]
[1736152997705,0.27494,3638.3,3637.9,3.2078]
[1736152997908,2.47695509,3638.5,3638.0,0.27497]
[1736152998102,3.2078,3638.7,3637.9,3.2078]
[1736152998103,2.20201509,3638.2,3637.9,3.2078]
[1736152998315,0.27498,3637.9,3637.5,1.7834]
[1736152998512,1.46598,3637.8,3637.5,1.7834]
[1736152999310,2.47701509,3637.6,3637.5,1.7834]
[1736152999807,0.27501,3637.5,3636.9,0.27504]
[1736153000002,3.48281,3637.5,3637.0,0.27504]
[1736153000408,3.2078,3637.5,3636.8,1.9119]
[1736153000610,3.2078,3637.5,3637.3,0.27502]
[1736153000809,3.48281,3637.5,3637.0,0.27504]
[1736153001013,3.2078,3637.5,3636.8,1.9119]
[1736153001206,3.48281,3637.5,3637.1,0.27503]
[1736153001809,2.20201509,3637.3,3636.8,1.9119]
[1736153002005,2.20201509,3637.3,3636.9,0.27505]
[1736153002211,2.20201509,3637.3,3636.8,1.9119]
[1736153002212,2.20201509,3637.0,3636.8,0.27506]
[1736153002412,1.192,3636.9,3636.8,0.27506]
[1736153003213,1.192,3636.9,3636.6,3.2078]
[1736153003607,1.192,3636.9,3636.8,0.27506]
[1736153005014,1.192,3636.9,3636.8,41.07506]
[1736153005203,2.20201509,3637.3,3636.8,40.8]
[1736153005409,1.192,3637.2,3637.1,0.27504]
[1736153006713,2.20201509,3637.3,3637.2,0.27503]
[1736153006915,3.39401509,3637.3,3636.9,1.9239]
[1736153007217,3.39401509,3637.3,3637.1,0.27503]
[1736153007515,3.39401509,3637.3,3636.6,3.2078]
[1736153007516,0.27504,3637.1,3636.7,0.27506]
[1736153007708,2.20201509,3637.0,3636.7,0.27506]
[1736153007913,2.20201509,3637.0,3636.8,0.27506]
[1736153009205,1.192,3637.2,3637.1,0.27504]
[1736153010519,3.2078,3637.9,3637.8,0.27498]
[1736153010812,4.3998,3637.9,3637.8,0.27498]
[1736153011013,3.2078,3637.9,3637.8,0.27498]
[1736153011214,4.3998,3637.9,3637.8,0.27498]
[1736153011818,1.192,3637.9,3637.8,0.27498]
[1736153012515,1.192,3637.9,3637.8,3.48278]
[1736153012718,3.2078,3638.4,3637.5,1.8149]
[1736153013017,1.192,3638.3,3638.2,0.27495]
[1736153013613,3.39401509,3638.3,3637.8,40.8]
[1736153014020,2.20201509,3638.0,3637.5,1.8149]
[1736153014410,2.20201509,3638.0,3637.8,0.27498]
[1736153014613,2.20201509,3638.0,3637.5,1.8149]
[1736153015119,5.40981509,3638.0,3637.8,0.27498]
[1736153016213,5.40981509,3638.0,3637.5,1.8149]
[1736153016519,5.40981509,3638.0,3637.8,0.27498]
[1736153016719,5.40981509,3638.0,3637.9,0.27498]
[1736153016920,3.2078,3638.0,3637.9,0.27498]
[1736153017116,0.27494,3638.4,3638.1,0.27495]
[1736153017317,1.203,3638.3,3638.1,0.27495]
[1736153017614,0.27496,3638.2,3637.9,0.27497]
[1736153018215,1.47795,3638.3,3638.0,0.27496]
[1736153018418,1.203,3638.3,3638.1,0.27496]
[1736153018617,1.203,3638.3,3638.2,0.27495]
[1736153019519,1.203,3638.3,3637.7,3.2078]
[1736153019520,10.7678,3638.5,3638.4,0.27494]
[1736153019919,11.9708,3638.5,3638.4,0.27494]
[1736153020417,4.4108,3638.5,3638.4,0.27494]
[1736153020921,3.2078,3638.5,3638.4,0.27494]
[1736153021119,4.4108,3638.5,3638.4,0.27494]
[1736153021322,3.2078,3638.9,3638.8,0.27491]
[1736153021523,4.4108,3638.9,3638.8,0.27491]
[1736153022618,3.2078,3638.9,3638.8,0.27491]
[1736153022823,4.4108,3638.9,3638.8,0.27491]
[1736153024626,4.6857,3638.9,3638.7,2.14771]
[1736153025326,4.4108,3638.9,3638.8,0.27491]
[1736153025618,4.6857,3638.9,3638.7,2.14771]
[1736153025825,4.4108,3638.9,3638.8,0.27491]
[1736153026423,4.4108,3638.9,3638.7,1.8728]
[1736153026727,4.4108,3638.9,3638.8,0.27491]
[1736153027321,7.56,3639.3,3638.8,0.27491]
[1736153027627,7.56,3639.3,3639.2,0.27488]
[1736153027827,8.763,3639.3,3639.2,0.27488]
[1736153028428,9.03787,3639.3,3639.0,1.9583]
[1736153028624,3.2078,3639.1,3639.0,1.9583]
[1736153028827,3.48269,3639.1,3638.9,1.8817]
[1736153029224,3.48269,3639.1,3638.9,2.1566]
[1736153029625,0.27489,3639.0,3638.9,1.8817]
[1736153030031,3.48269,3639.1,3638.9,0.27489]
[1736153030329,3.2078,3639.1,3639.0,0.27489]
[1736153032829,4.4108,3639.1,3639.0,0.27489]
[1736153036631,1.203,3639.1,3638.8,0.27491]
[1736153036826,1.203,3639.1,3639.0,0.27489]
[1736153037739,1.203,3639.1,3638.7,1.8728]
[1736153038039,0.27492,3638.7,3638.5,1.8329]
[1736153038239,2.47693509,3638.7,3638.5,1.8329]
[1736153038636,0.27491,3638.8,3638.5,1.8329]
[1736153038834,2.20201509,3639.0,3638.5,1.8329]
[1736153039035,0.2749,3638.9,3638.5,2.10783]
[1736153039343,2.41306157,3638.9,3638.5,2.10783]
[1736153040142,2.13816157,3638.9,3638.8,0.27491]
[1736153041042,3.34116157,3638.9,3638.8,0.27491]
[1736153041245,1.203,3638.9,3638.8,0.27491]
[1736153043946,7.56,3639.3,3639.0,0.27489]
[1736153044146,1.203,3639.2,3639.0,0.27489]
[1736153044348,1.203,3639.2,3638.6,3.2078]
[1736153044544,1.203,3639.2,3639.1,0.27488]
[1736153045845,2.13816157,3639.4,3639.3,0.27487]
[1736153046148,1.203,3639.4,3639.3,0.27487]
[1736153046548,2.13816157,3639.5,3639.4,0.27486]
[1736153046751,2.13816157,3639.5,3639.4,3.48266]
[1736153047250,1.199,3639.6,3639.5,0.27485]
[1736153049363,3.2078,3640.0,3639.5,0.27485]
[1736153049556,3.2078,3640.0,3639.8,0.27483]
[1736153049557,1.199,3639.9,3639.8,0.27483]
[1736153051565,1.199,3639.9,3639.4,3.2078]
[1736153051758,1.199,3639.9,3639.7,0.27484]
[1736153052557,1.199,3639.9,3639.6,0.27484]
[1736153052957,1.199,3639.9,3639.7,0.27483]
[1736153053163,1.199,3639.9,3639.4,3.2078]
[1736153053359,1.199,3639.9,3639.6,0.27484]
[1736153053557,1.47383,3639.9,3639.6,0.27484]
[1736153053768,1.199,3639.9,3639.4,3.2078]
[1736153053964,1.199,3639.9,3639.7,0.27483]
[1736153054362,1.199,3639.9,3639.5,0.27485]
[1736153054563,1.199,3639.9,3639.4,3.2078]
[1736153054761,1.199,3639.9,3639.7,0.27484]
[1736153055364,1.199,3639.9,3639.4,3.2078]
[1736153055665,1.199,3639.9,3639.7,0.27484]
[1736153056259,1.199,3639.9,3639.8,0.27483]
[1736153057964,4.61497666,3640.2,3639.9,0.27482]
[1736153058260,3.2078,3640.0,3639.5,5.7028]
[1736153058472,0.27486,3639.5,3639.2,0.27488]
[1736153058671,3.2078,3639.6,3638.8,5.7575]
[1736153058963,0.2749,3639.0,3638.8,5.7575]
[1736153059169,1.4739,3638.9,3638.8,1.9639]
[1736153059365,1.199,3638.9,3638.8,1.9639]
[1736153059565,1.4739,3638.9,3638.8,1.9639]
[1736153059761,1.199,3638.9,3638.8,1.9639]
[1736153064262,3.33716157,3638.9,3638.8,1.9639]
[1736153064765,3.33716157,3638.9,3638.8,2.23881]
[1736153065367,1.199,3638.9,3638.8,2.23881]
[1736153065969,2.13816157,3639.0,3638.8,1.9639]
[1736153066173,2.13816157,3639.0,3638.9,0.2749]
[1736153066362,3.33716157,3639.0,3638.9,0.2749]
[1736153066861,3.33716157,3639.0,3638.5,2.20201509]
[1736153067064,3.33716157,3639.0,3638.4,5.6436]
[1736153067065,0.2749,3638.9,3638.4,5.6436]
[1736153067472,3.61206157,3639.0,3638.6,0.27492]
[1736153067975,3.61206157,3639.0,3638.4,5.91853]
[1736153067976,0.2749,3638.9,3638.4,5.91853]
[1736153068273,0.2749,3638.9,3638.4,5.6436]
[1736153068568,1.199,3638.8,3638.5,0.27493]
[1736153068763,1.199,3638.8,3638.6,0.27492]
[1736153068967,1.199,3638.8,3638.4,5.6436]
[1736153069168,1.199,3638.8,3638.6,0.27492]
[1736153069370,1.199,3638.8,3638.4,5.6436]
[1736153069673,1.199,3638.8,3638.6,0.27492]
[1736153069862,1.199,3638.8,3638.4,5.6436]
[1736153069863,3.33716157,3638.8,3638.4,5.91853]
[1736153070167,3.33716157,3638.8,3638.4,5.6436]
[1736153070470,3.33716157,3638.8,3638.5,0.27493]
[1736153070968,2.13816157,3638.7,3638.6,0.27492]
[1736153072474,1.199,3638.8,3638.4,5.6436]
[1736153072475,3.33716157,3638.8,3638.7,0.27491]
[1736153074163,1.199,3638.8,3638.7,0.27491]
[1736153074970,2.13816157,3638.9,3638.5,2.20201509]
[1736153075171,2.13816157,3638.9,3638.8,0.27491]
[1736153075369,3.20724235,3639.1,3638.8,0.27491]
[1736153075370,3.20724235,3639.1,3638.8,2.20201509]
[1736153075578,3.2078,3639.9,3638.8,2.20201509]
[1736153075579,3.20724235,3639.2,3638.8,2.20201509]
[1736153075785,3.20724235,3639.2,3639.1,5.68469509]
[1736153075965,4.28874353,3639.4,3639.1,46.48469509]
[1736153076173,4.28874353,3639.4,3639.3,0.27487]
[1736153076374,1.28764353,3639.4,3639.3,0.27487]
[1736153077268,1.199,3639.5,3639.4,0.27486]
[1736153077573,1.199,3639.5,3639.4,2.47687509]
[1736153077968,3.2078,3639.9,3639.8,0.27483]
[1736153078165,1.187,3639.9,3639.8,0.27483]
[1736153078566,1.187,3639.9,3639.7,3.2078]
[1736153078776,3.38901509,3639.9,3639.3,1.9317]
[1736153078970,0.27484,3639.7,3639.3,2.20657]
[1736153079163,0.27484,3639.7,3639.3,1.9317]
[1736153079368,1.9875,3639.6,3639.3,1.9317]
[1736153079564,0.27486,3639.4,3638.9,8.54715107]
[1736153079770,3.2078,3639.5,3638.9,8.54715107]
[1736153079978,3.2078,3639.5,3638.9,8.27226107]
[1736153080279,0.27487,3639.4,3638.9,8.54716107]
[1736153080470,0.27487,3639.4,3638.9,8.27226107]
[1736153080675,0.27487,3639.4,3639.0,0.27489]
[1736153080971,0.68723108,3639.4,3639.0,0.27489]
[1736153082075,0.27487,3639.4,3639.0,0.27489]
[1736153082478,3.48266,3639.5,3638.9,1.8169]
[1736153082880,3.48266,3639.5,3639.1,0.27488]
[1736153083379,3.2078,3639.5,3638.9,1.8169]
[1736153083572,3.2078,3639.5,3639.2,0.27488]
[1736153084074,1.187,3639.4,3639.2,0.27488]
[1736153084279,1.187,3639.4,3639.3,0.27487]
[1736153084467,1.187,3639.4,3639.3,2.15097]
[1736153084673,1.187,3639.4,3639.3,42.95097]
[1736153085579,1.9875,3639.6,3639.4,0.27486]
[1736153085771,1.187,3639.5,3639.4,0.27486]
[1736153086976,8.58124304,3640.3,3639.3,44.87811509]
[1736153087181,3.102,3640.2,3639.9,0.27482]
[1736153087677,3.51427464,3640.2,3639.7,0.27484]
[1736153087877,3.51427464,3640.2,3640.0,0.27481]
[1736153088180,3.51427464,3640.2,3639.9,0.27482]
[1736153088576,3.51427464,3640.2,3640.1,0.27481]
[1736153088976,3.51427464,3640.2,3639.8,1.8308]
[1736153089177,0.41227464,3640.1,3640.0,0.27481]
[1736153090180,1.59927464,3640.1,3640.0,0.27481]
[1736153091784,1.187,3640.1,3640.0,0.27481]
[1736153096076,1.187,3640.1,3639.8,2.10563]
[1736153096280,1.187,3640.1,3639.9,0.27482]
[1736153096481,3.1023,3640.1,3639.8,0.27483]
[1736153096783,3.1023,3640.1,3639.4,0.015]
[1736153096981,3.48264,3639.7,3639.4,0.015]
[1736153097187,3.2078,3639.7,3639.4,0.015]
[1736153097690,1.8047,3639.6,3639.4,0.28986]
[1736153098790,1.8047,3639.6,3639.5,0.27485]
[1736153098990,1.8047,3639.6,3639.4,0.28986]
[1736153099688,1.8047,3639.6,3639.5,0.27485]
[1736153100390,1.8047,3639.6,3639.4,0.015]
[1736153100391,6.3101,3640.1,3639.4,0.015]
[1736153100579,2.25492,3640.0,3639.7,0.27484]
[1736153100891,2.25492,3640.0,3639.6,0.27484]
[1736153101290,0.27483,3639.9,3639.6,0.27485]
[1736153101483,0.27483,3639.9,3639.5,0.27485]
[1736153102196,0.27482,3639.9,3639.6,0.27484]
[1736153102389,1.9801,3640.0,3639.8,0.27483]
[1736153102590,1.187,3639.9,3639.8,0.27483]
[1736153103292,1.187,3639.9,3639.6,0.27484]
[1736153103487,1.187,3639.9,3639.4,0.015]
[1736153103684,1.187,3639.9,3639.6,0.27484]
[1736153103890,1.187,3639.9,3639.8,0.27483]
[1736153105488,1.187,3639.9,3639.4,0.015]
[1736153105694,1.187,3639.8,3639.7,0.27483]
[1736153107196,1.187,3639.8,3639.6,0.27484]
[1736153107491,1.187,3639.8,3639.7,0.27484]
[1736153109098,1.187,3639.8,3639.6,0.27484]
[1736153109289,1.187,3639.8,3639.5,1.9317]
[1736153109490,1.187,3639.8,3639.4,40.815]
[1736153109793,1.187,3639.8,3639.4,41.08986]
[1736153109794,0.27484,3639.7,3639.4,41.08986]
[1736153109995,1.46184,3639.8,3639.4,41.08986]
[1736153110296,0.27484,3639.7,3639.4,40.815]
[1736153110599,1.46184,3639.8,3639.4,41.08986]
[1736153111297,1.187,3639.8,3639.4,40.815]
[1736153111698,1.46183,3639.8,3639.5,0.27485]
[1736153111897,1.187,3639.8,3639.5,0.27485]
[1736153112087,1.46183,3639.8,3639.5,0.27485]
[1736153112696,1.187,3639.8,3639.5,0.27485]
[1736153113393,1.187,3639.8,3639.4,40.815]
[1736153113592,1.187,3639.8,3639.5,0.27485]
[1736153113800,1.187,3639.8,3639.4,40.815]
[1736153114097,1.187,3639.8,3639.5,0.27485]
[1736153114694,1.187,3639.8,3639.4,40.815]
[1736153115000,1.46183,3639.8,3639.5,0.27485]
[1736153115299,1.187,3639.8,3639.5,0.27485]
[1736153115495,3.2078,3639.7,3639.4,0.015]
[1736153115696,0.27485,3639.5,3639.4,0.015]
[1736153116096,2.23505,3639.5,3639.4,0.015]
[1736153117006,2.64738431,3639.5,3639.4,0.015]
[1736153117697,0.6872,3639.3,3638.5,4.31119435]
[1736153117902,3.4827,3638.9,3638.5,4.58612435]
[1736153118109,3.1352,3638.8,3638.5,4.58612435]
[1736153118298,3.1352,3638.8,3638.5,4.31119435]
[1736153118501,3.41011,3638.8,3638.4,41.07493]
[1736153119006,3.1352,3638.8,3638.5,0.27493]
[1736153119800,3.1352,3638.8,3638.3,42.71]
[1736153120001,3.1352,3638.8,3638.6,0.27492]
[1736153120194,3.41011,3638.8,3638.6,0.27492]
[1736153121900,3.1352,3638.8,3638.7,0.27491]
[1736153122103,3.1352,3638.8,3638.3,42.71]
[1736153122296,3.41011,3638.8,3638.6,0.27492]
[1736153123099,3.1352,3638.8,3638.3,42.71]
[1736153123402,3.2078,3638.9,3638.5,2.20201509]
[1736153123605,1.175,3638.8,3638.7,0.27491]
[1736153125398,3.2078,3638.9,3638.5,2.88934509]
[1736153125599,3.2078,3638.9,3638.8,0.27491]
[1736153125800,4.3828,3638.9,3638.8,0.27491]
[1736153129001,1.175,3639.1,3638.8,2.20201509]
[1736153129199,1.175,3639.1,3639.0,0.27489]
[1736153129403,4.28581607,3639.5,3639.4,0.27486]
[1736153129604,5.46081607,3639.5,3639.4,0.27486]
[1736153129803,1.175,3639.5,3639.4,0.27486]
[1736153130104,4.28581607,3639.6,3639.5,0.27485]
[1736153130304,5.46081607,3639.6,3639.5,0.27485]
[1736153130503,4.28581607,3639.6,3639.5,0.27485]
[1736153130701,5.46081607,3639.6,3639.5,0.27485]
[1736153131408,1.175,3639.6,3639.5,0.27485]
[1736153134200,0.27484,3639.8,3639.5,0.27485]
[1736153134399,1.175,3639.7,3639.5,0.27485]
[1736153134597,1.175,3639.7,3639.1,4.20361509]
[1736153134899,1.175,3639.7,3639.6,0.27485]
[1736153135701,1.58730689,3639.7,3639.6,0.27485]
[1736153137000,4.80002099,3639.7,3639.6,0.27485]
[1736153141001,1.175,3639.7,3639.6,0.27485]
[1736153141311,3.2127141,3639.8,3639.7,0.27484]
[1736153141510,3.2127141,3639.8,3639.7,2.47685509]
[1736153141704,3.2127141,3639.8,3639.7,43.27685509]
[1736153142111,4.27081607,3640.0,3639.9,0.27482]
[1736153142310,3.21495031,3640.2,3640.1,0.27481]
[1736153142510,3.21495031,3640.2,3640.1,2.47682509]
[1736153143019,5.42981607,3640.5,3640.4,0.27479]
[1736153143230,4.27081607,3640.5,3640.4,5.68460509]
[1736153143440,1.21521607,3640.5,3640.4,10.68460509]
[1736153143826,5.35727009,3640.7,3640.6,0.27477]
[1736153144036,1.159,3641.1,3640.6,40.8]
[1736153144228,1.159,3641.1,3641.0,5.68455509]
[1736153144413,5.35727009,3641.4,3641.3,0.27472]
[1736153144617,5.35727009,3641.4,3641.3,2.47673509]
[1736153145026,5.35727009,3641.4,3641.3,7.47673509]
[1736153145221,6.44813165,3641.9,3641.3,7.47673509]
[1736153145439,6.44813165,3641.9,3641.8,5.68449509]
[1736153145627,1.159,3642.3,3642.2,0.27465]
[1736153146436,1.159,3642.3,3642.2,2.47666509]
[1736153147327,4.3668,3642.3,3641.8,41.07468]
[1736153147518,0.27468,3641.9,3641.4,3.2078]
[1736153147723,3.2078,3642.0,3641.3,8.78930944]
[1736153148018,1.8413,3641.8,3641.4,0.27471]
[1736153148313,2.11598,3641.8,3641.4,0.27471]
[1736153148709,1.8413,3641.8,3641.3,2.20201509]
[1736153148912,0.27469,3641.7,3641.2,0.27472]
[1736153149109,2.0012,3641.7,3641.3,0.27472]
[1736153149306,2.0012,3641.7,3641.3,0.27471]
[1736153149506,2.0012,3641.7,3641.0,2.20201509]
[1736153149812,0.2747,3641.6,3641.1,0.27473]
[1736153150009,1.43371,3641.5,3641.1,0.27473]
[1736153151312,1.159,3641.5,3641.2,0.27473]
[1736153151515,1.159,3641.5,3641.0,2.20201509]
[1736153151713,1.43371,3641.5,3641.1,0.27473]
[1736153152418,0.27471,3641.4,3641.0,2.47675509]
[1736153152617,0.27471,3641.4,3641.0,2.20201509]
[1736153152828,1.43371,3641.5,3641.1,0.27473]
[1736153153520,1.159,3641.5,3641.2,0.27472]
[1736153153717,1.159,3641.5,3641.0,2.20201509]
[1736153153915,1.43371,3641.5,3641.1,0.27473]
[1736153154813,1.43371,3641.5,3641.2,40.8]
[1736153155014,1.43371,3641.5,3641.2,41.07473]
[1736153155516,1.43371,3641.5,3641.2,40.8]
[1736153155914,1.159,3641.5,3641.2,41.07472]
[1736153156420,1.43371,3641.5,3641.2,40.8]
[1736153157016,4.64151,3641.5,3641.2,40.8]
[1736153157918,4.3668,3641.5,3641.2,41.07472]
[1736153158819,4.3668,3641.5,3641.3,0.27471]
[1736153159013,4.6415,3641.5,3641.2,41.07472]
[1736153159213,4.3668,3641.5,3641.2,40.8]
[1736153159614,0.27471,3641.4,3641.2,40.8]
[1736153159821,4.3668,3641.5,3641.3,0.27472]
[1736153160217,4.3668,3641.5,3641.2,40.8]
[1736153160411,4.64151,3641.5,3641.2,40.8]
[1736153160616,4.64151,3641.5,3641.2,41.07472]
[1736153160919,4.3668,3641.5,3641.2,40.8]
[1736153161122,4.3668,3641.5,3641.2,41.07472]
[1736153161123,4.64151,3641.5,3641.2,41.07472]
[1736153161511,4.3668,3641.5,3641.2,40.8]
[1736153161712,0.27475,3641.0,3640.7,3.48256]
[1736153161914,6.10325,3640.9,3640.7,3.2078]
[1736153162118,9.0363,3640.9,3640.6,40.8]
[1736153162511,0.27476,3640.8,3640.6,40.8]
[1736153162714,1.158,3640.7,3640.6,40.8]
[1736153163420,1.158,3640.7,3640.6,41.07477]
[1736153163922,1.158,3640.7,3640.6,40.8]
[1736153164920,1.43276,3640.7,3640.6,40.8]
[1736153165217,1.52536409,3640.7,3640.5,0.27478]
[1736153165426,0.27477,3640.6,3640.0,5.3639]
[1736153165718,0.27483,3639.9,3639.6,0.27484]
[1736153165917,4.9941,3639.8,3639.6,0.27484]
[1736153166118,5.26894,3639.8,3639.5,0.27485]
[1736153166318,6.9445,3639.8,3639.6,0.27484]
[1736153166819,6.9445,3639.8,3639.7,0.27484]
[1736153168628,6.9445,3639.8,3639.5,40.8]
[1736153168825,6.9445,3639.8,3639.6,0.27484]
[1736153169623,6.9445,3639.8,3639.5,40.8]
[1736153170021,0.27485,3639.6,3639.5,40.8]
[1736153170625,2.88912509,3639.7,3638.5,4.19821509]
[1736153170825,0.27489,3639.1,3638.8,0.27491]
[1736153171027,5.0264,3639.0,3638.9,40.8]
[1736153171325,5.0264,3639.0,3638.9,41.0749]
[1736153171523,3.2078,3639.3,3638.9,40.8]
[1736153171726,3.2078,3639.3,3639.2,0.27488]
[1736153171932,4.3478,3639.3,3639.2,0.27488]
[1736153172332,1.14,3639.3,3639.2,0.27488]
[1736153172946,1.14,3639.3,3639.2,2.24868]
[1736153173542,1.14,3639.3,3639.2,0.27488]
[1736153175848,1.14,3639.3,3639.1,0.27488]
[1736153176338,1.14,3639.3,3639.2,0.27488]
[1736153177437,1.14,3639.3,3639.1,0.27488]
[1736153178040,0.27488,3639.1,3638.9,40.8]
[1736153178235,1.14,3639.3,3638.7,3.2078]
[1736153178236,3.2078,3639.2,3638.7,3.2078]
[1736153178447,0.27492,3638.7,3638.3,0.27494]
[1736153178743,0.68722,3639.1,3638.2,6.55319435]
[1736153178744,2.20201509,3639.0,3638.2,6.55319435]
[1736153178947,3.8932,3639.0,3638.4,0.27493]
[1736153179136,3.8932,3639.0,3638.2,6.55319435]
[1736153179339,0.2749,3638.9,3638.2,6.55319435]
[1736153179534,0.2749,3638.9,3638.6,0.27492]
[1736153179740,0.2749,3638.9,3638.7,0.11281458]
[1736153179944,0.2749,3638.9,3638.8,0.11281458]
[1736153180144,4.16809,3639.0,3638.8,0.11281458]
[1736153180347,4.16809,3639.0,3638.9,0.11281458]
[1736153181647,4.16809,3639.0,3638.9,0.11280589]
[1736153182037,3.8932,3639.0,3638.9,0.11280078]
[1736153182347,4.16809,3639.0,3638.9,0.11280078]
[1736153183149,6.37010509,3639.0,3638.9,0.11280078]
[1736153183341,6.09521509,3639.0,3638.2,1.9668]
[1736153183541,0.27493,3638.6,3638.4,0.27494]
[1736153183750,1.141,3638.5,3638.4,0.27494]
[1736153186051,1.141,3638.5,3638.2,1.9668]
[1736153186352,1.141,3638.5,3638.4,0.27494]
[1736153187348,1.141,3638.5,3638.1,5.40981509]
[1736153187946,1.141,3638.5,3638.4,0.27494]
[1736153195356,1.141,3638.5,3638.4,0.38797557]
[1736153196855,1.141,3638.5,3638.4,0.38799587]
[1736153199846,1.141,3638.5,3638.4,0.38808963]
[1736153200460,1.141,3638.5,3638.4,0.38810839]
[1736153200651,1.141,3638.5,3638.4,1.59096346]
[1736153202356,0.27498,3637.9,3637.7,0.33889574]
[1736153202655,0.27498,3637.9,3637.7,0.27499]
[1736153202857,3.994,3637.8,3637.7,0.27499]
[1736153205464,3.2078,3638.1,3637.6,40.8]
[1736153205763,3.2078,3638.1,3638.0,0.27497]
[1736153206065,4.3288,3638.1,3638.0,0.27497]
[1736153206362,1.121,3638.1,3638.0,2.18587]
[1736153206853,1.121,3638.1,3638.0,0.27497]
[1736153216661,6.03608166,3638.5,3638.4,0.27494]
[1736153216855,2.13208166,3638.5,3638.4,0.27494]
[1736153217256,2.13208166,3638.5,3638.4,5.29756665]
[1736153218069,2.13208166,3638.5,3638.4,46.09756665]
[1736153218669,1.121,3639.0,3638.4,46.09756665]
[1736153218670,1.121,3639.0,3638.9,0.2749]
[1736153221363,8.03428166,3639.4,3638.9,2.20201509]
[1736153221669,3.25308166,3639.4,3639.3,2.47688509]
[1736153222858,3.25308166,3639.4,3639.3,43.27688509]
[1736153223771,1.121,3639.4,3639.3,47.59299397]
[1736153224869,1.121,3639.4,3639.3,43.27688509]
[1736153226873,1.121,3639.4,3639.3,2.47688509]
[1736153227367,1.121,3639.4,3639.3,43.27688509]
[1736153228678,1.121,3639.4,3639.1,7.52390888]
[1736153228976,0.27488,3639.2,3639.1,4.31610888]
[1736153230172,0.27488,3639.2,3638.9,6.73026107]
[1736153230173,0.27488,3639.2,3638.9,0.2749]
[1736153230676,0.27489,3639.1,3638.7,2.20201509]
[1736153230969,0.27489,3639.1,3638.8,0.2749]
[1736153231175,0.27489,3639.1,3638.7,2.47692509]
[1736153231569,0.27489,3639.1,3638.8,0.2749]
[1736153231974,0.27488,3639.2,3638.8,0.2749]
[1736153232273,6.11568,3639.3,3638.9,0.27489]
[1736153232474,5.8408,3639.3,3638.7,2.20201509]
[1736153232777,0.27489,3639.1,3638.7,2.20201509]
[1736153232975,0.27488,3639.2,3638.7,2.20201509]
[1736153233180,0.27488,3639.2,3638.9,0.2749]
[1736153233377,6.11567,3639.3,3639.0,0.27489]
[1736153233578,1.104,3639.2,3639.0,2.20201509]
[1736153233883,1.104,3639.2,3639.1,0.27488]
[1736153234676,1.104,3639.2,3638.7,5.40981509]
[1736153234882,1.104,3639.2,3638.8,0.27491]
[1736153234883,0.27488,3639.1,3638.8,0.27491]
[1736153235276,0.2749,3638.9,3638.6,0.27492]
[1736153235475,0.2749,3639.0,3638.7,0.27491]
[1736153235881,1.104,3639.2,3638.5,40.8]